bitfinex/quotes_ETHUSD_20251021
["timestamp","ask_amount","ask_price","bid_price","bid_amount"]
[1761061155653,0.444,4054.5,4054.1,3.364]
[1761061156100,0.2204,4054.6,4054.2,2.46656366]
[1761061156302,0.444,4054.5,4054.1,3.363]
[1761061156659,2.91041149,4054.5,4054.1,3.363]
[1761061156897,0.43628115,4054.4,4054.1,3.363]
[1761061157071,0.5672,4054.4,4054.1,3.363]
[1761061157401,2.46651703,4054.3,4054.1,3.363]
[1761061157698,0.444,4054.3,4054.1,3.363]
[1761061157883,0.1232,4054.4,4054.1,3.363]
[1761061159003,0.2204,4054.6,4054.1,5.82962972]
[1761061159348,0.4674,4054.5,4054.1,3.363]
[1761061160008,2.46657786,4054.2,4054.1,3.363]
[1761061160393,0.4674,4054.2,4053.7,3.364]
[1761061160599,2.46677909,4053.9,4053.7,3.364]
[1761061160901,0.2204,4054.6,4053.7,3.364]
[1761061160902,0.1232,4053.8,4053.7,3.364]
[1761061161314,0.5906,4053.8,4053.7,3.364]
[1761061161519,3.36315226,4053.8,4053.7,3.364]
[1761061161718,0.89633101,4053.8,4053.7,3.364]
[1761061161925,0.1232,4053.8,4053.7,3.364]
[1761061162104,0.5906,4053.8,4053.7,3.364]
[1761061162505,0.1232,4053.8,4053.7,3.364]
[1761061162703,0.1232,4053.8,4053.2,0.1232]
[1761061162902,0.5906,4053.8,4053.2,0.1232]
[1761061163224,0.2324,4053.3,4052.9,5.83035662]
[1761061163526,0.1232,4053.5,4052.9,3.363]
[1761061163728,0.2204,4054.6,4053.0,0.02467308]
[1761061163895,0.4399,4054.2,4052.9,3.95836228]
[1761061164228,2.90653163,4054.2,4053.3,2.46706946]
[1761061164406,2.46664905,4054.1,4053.3,2.46706946]
[1761061164589,2.46681093,4053.9,4053.0,2.46726276]
[1761061164790,0.4399,4054.0,4052.9,3.363]
[1761061165029,0.4399,4053.9,4053.3,2.46711702]
[1761061165191,18.75440545,4054.5,4052.9,3.363]
[1761061165192,2.46644526,4054.5,4053.5,2.46695492]
[1761061165397,0.4399,4054.4,4053.6,3.36]
[1761061165644,2.46666029,4054.1,4053.7,3.359]
[1761061165947,0.4399,4054.4,4053.6,3.359]
[1761061166130,2.4667176,4054.0,4053.6,3.359]
[1761061166328,2.4668821,4053.7,4053.6,3.359]
[1761061166518,18.97480545,4054.6,4053.6,3.359]
[1761061166519,0.4399,4054.2,4053.6,3.359]
[1761061166847,2.4667022,4054.0,4053.6,3.359]
[1761061167149,2.4668821,4053.7,4053.6,3.359]
[1761061167653,2.9067821,4053.7,4053.6,3.359]
[1761061168149,0.4399,4053.7,4053.6,3.359]
[1761061169052,2.9067821,4053.7,4053.6,3.359]
[1761061169253,0.4399,4053.7,4053.6,3.359]
[1761061169557,2.9067821,4053.7,4053.6,3.359]
[1761061169917,0.4399,4053.7,4053.6,3.359]
[1761061170317,1.32099319,4055.6,4053.6,3.359]
[1761061170318,0.4399,4054.2,4053.6,3.359]
[1761061170725,2.90649649,4054.2,4053.6,3.359]
[1761061171423,2.46664089,4054.1,4053.6,3.359]
[1761061171617,2.90654089,4054.1,4053.6,3.359]
[1761061171816,0.4399,4054.0,4053.6,3.359]
[1761061172625,2.46659768,4054.2,4053.6,3.359]
[1761061172825,2.90743711,4054.3,4053.6,3.359]
[1761061173156,0.4409,4054.3,4053.6,5.82593517]
[1761061173358,0.001,4054.3,4053.6,5.82593517]
[1761061173962,0.1232,4054.1,4053.6,3.359]
[1761061174163,0.1232,4054.1,4053.6,4.20063086]
[1761061174466,0.001,4054.3,4054.2,2.46657786]
[1761061174631,0.001,4054.3,4054.2,5.81457786]
[1761061175364,0.001,4054.3,4054.2,6.32145786]
[1761061175966,0.001,4054.3,4054.2,3.348]
[1761061176140,2.90743031,4054.3,4053.5,2.46695064]
[1761061176328,2.90743031,4054.3,4053.6,5.81493845]
[1761061176329,0.001,4054.3,4053.6,5.81493845]
[1761061176536,0.4409,4054.3,4053.6,3.348]
[1761061176763,0.001,4054.3,4053.6,3.348]
[1761061177342,0.001,4054.3,4054.0,2.46664359]
[1761061177534,0.001,4054.3,4054.1,3.348]
[1761061177945,0.4409,4054.3,4054.1,3.348]
[1761061178263,0.4409,4054.3,4053.5,3.347]
[1761061178264,2.46663871,4054.1,4053.5,3.347]
[1761061178675,2.90653871,4054.1,4053.5,3.347]
[1761061178835,0.001,4054.3,4053.5,5.81394615]
[1761061179170,0.4399,4054.2,4053.5,3.347]
[1761061179335,2.90648879,4054.2,4053.5,3.347]
[1761061179530,0.4399,4054.2,4053.5,3.347]
[1761061179738,0.001,4054.3,4053.5,3.347]
[1761061180068,0.4399,4054.1,4053.5,3.347]
[1761061180438,2.46671572,4054.0,4053.5,3.347]
[1761061180646,0.001,4054.3,4053.5,3.347]
[1761061180647,0.001,4054.3,4053.8,2.46677003]
[1761061180852,0.001,4054.3,4053.9,2.46674628]
[1761061181094,0.001,4054.3,4054.0,3.347]
[1761061181776,0.001,4054.3,4054.2,2.46657786]
[1761061184282,0.001,4054.3,4054.2,2.58977786]
[1761061186477,0.001,4054.3,4054.2,2.72017786]
[1761061186775,0.001,4054.3,4054.2,3.44316445]
[1761061187007,0.001,4054.3,4054.2,2.58977786]
[1761061187143,0.001,4054.3,4054.1,0.2471]
[1761061188071,0.001,4054.3,4054.0,3.4702]
[1761061188276,0.4399,4054.2,4054.0,3.4702]
[1761061188475,0.001,4054.3,4054.0,3.4702]
[1761061188663,0.001,4054.3,4054.2,2.46657786]
[1761061189250,0.001,4054.3,4054.2,2.71367786]
[1761061189476,0.001,4054.3,4054.2,2.46657786]
[1761061189783,0.001,4054.3,4054.2,3.10385786]
[1761061190289,0.001,4054.3,4054.2,4.85652363]
[1761061190597,0.001,4054.3,4054.2,6.00762441]
[1761061190799,0.001,4054.3,4054.2,5.98295864]
[1761061191152,0.001,4054.3,4054.2,4.25495864]
[1761061191698,0.001,4054.3,4054.2,4.12455864]
[1761061192251,0.001,4054.3,4054.2,4.14922441]
[1761061192469,0.001,4054.3,4054.2,4.12455864]
[1761061192891,0.001,4054.3,4054.2,4.14922441]
[1761061193189,0.001,4054.3,4054.2,5.85255864]
[1761061194159,0.001,4054.3,4054.2,5.98295864]
[1761061196468,0.001,4054.3,4054.2,9.08168646]
[1761061196898,0.001,4054.3,4054.2,8.83605864]
[1761061197074,0.001,4054.3,4054.2,9.08168646]
[1761061197551,0.001,4054.3,4054.2,6.47568646]
[1761061197748,0.001,4054.3,4054.2,24.47280208]
[1761061198194,0.001,4054.3,4054.2,24.7184299]
[1761061198748,0.001,4054.3,4054.2,24.8416299]
[1761061199155,0.001,4054.3,4054.2,6.35325864]
[1761061199783,0.001,4054.3,4054.2,6.59888646]
[1761061199994,0.001,4054.3,4054.2,6.35325864]
[1761061200358,0.001,4054.3,4054.2,6.59888646]
[1761061200657,1e-08,4055.2,4055.1,4.83131043]
[1761061200884,1e-08,4055.2,4055.1,27.42705597]
[1761061201052,1e-08,4055.2,4055.1,27.40239567]
[1761061201464,1e-08,4055.2,4055.1,9.02925223]
[1761061201800,1e-08,4055.2,4055.1,8.89885223]
[1761061202152,1e-08,4055.2,4055.1,9.02925223]
[1761061202396,1e-08,4055.2,4055.1,8.90605223]
[1761061202581,1e-08,4055.2,4055.1,8.89885223]
[1761061202782,1e-08,4055.2,4055.1,7.66223043]
[1761061202952,1e-08,4055.2,4055.1,7.66123043]
[1761061203173,1e-08,4055.2,4055.1,7.79163043]
[1761061203377,1e-08,4055.2,4055.1,8.29851043]
[1761061204416,0.5,4057.2,4055.1,8.29851043]
[1761061204417,0.5,4057.2,4057.1,2.46481476]
[1761061204584,0.5,4057.2,4057.1,5.80881476]
[1761061204786,0.9279,4057.2,4057.1,5.80881476]
[1761061204984,0.5,4057.2,4057.1,6.31569476]
[1761061205291,0.5,4057.2,4057.1,7.19375353]
[1761061205786,0.2154,4059.0,4058.9,2.46372169]
[1761061205985,0.6433,4059.0,4057.9,1.728]
[1761061206308,0.6433,4059.0,4058.1,0.50688]
[1761061206510,0.6433,4059.0,4057.3,2.23488]
[1761061206511,0.6433,4059.0,4058.4,2.46402523]
[1761061206694,0.6433,4059.0,4058.2,3.729088]
[1761061206695,0.6433,4059.0,4058.8,2.4637777]
[1761061206875,0.2154,4059.0,4058.9,5.80772169]
[1761061207076,0.2154,4059.4,4058.9,3.344]
[1761061207474,0.4279,4059.3,4058.9,3.344]
[1761061207681,0.4279,4059.3,4058.9,5.80770137]
[1761061208008,0.4279,4059.3,4058.9,3.344]
[1761061208209,0.4279,4059.3,4058.9,5.80770197]
[1761061208413,0.4279,4059.3,4058.9,3.344]
[1761061209900,0.001,4059.6,4059.0,19.99538005]
[1761061210213,0.001,4059.6,4059.5,2.97023755]
[1761061210413,0.001,4059.6,4059.5,6.33787112]
[1761061210590,0.001,4059.6,4059.5,6.31323755]
[1761061211391,0.001,4059.6,4059.0,19.97074344]
[1761061211627,0.001,4059.6,4057.5,0.1304]
[1761061211628,0.4279,4059.5,4057.5,0.1304]
[1761061211832,0.4279,4059.5,4058.3,0.55064085]
[1761061212127,2.46364747,4059.1,4058.4,0.526]
[1761061212327,0.4279,4059.5,4058.6,2.46385467]
[1761061212491,0.4279,4059.4,4057.9,2.46427327]
[1761061212691,0.4279,4059.4,4058.0,2.433]
[1761061212692,0.2154,4058.7,4058.0,2.433]
[1761061212897,0.2154,4058.7,4058.3,2.4640834]
[1761061213131,0.4279,4059.4,4058.3,2.4640834]
[1761061213132,0.2154,4058.8,4058.4,3.36664025]
[1761061213423,0.2154,4058.8,4058.4,3.342]
[1761061213653,0.4279,4059.5,4058.5,0.53151964]
[1761061213935,0.4279,4059.5,4059.0,2.46362784]
[1761061214094,0.4279,4059.5,4059.1,5.82922107]
[1761061214295,0.4279,4059.5,4059.4,0.1224]
[1761061214616,0.001,4059.6,4059.4,5.95145241]
[1761061214814,0.001,4059.6,4059.5,2.46335755]
[1761061215202,0.001,4059.6,4059.5,3.30238025]
[1761061215409,0.001,4059.6,4059.5,2.46335755]
[1761061215628,0.001,4059.6,4059.4,3.341]
[1761061215992,0.001,4059.6,4059.4,5.80441619]
[1761061216232,0.4279,4059.5,4059.4,3.341]
[1761061217295,0.001,4059.6,4059.4,5.80441823]
[1761061217524,0.001,4059.6,4059.4,5.80441531]
[1761061217728,0.001,4059.6,4059.5,2.48799112]
[1761061219030,0.001,4059.6,4059.5,0.02463357]
[1761061219337,0.001,4059.6,4059.5,2.48799112]
[1761061219710,0.001,4059.6,4059.5,2.99487112]
[1761061221334,0.001,4059.6,4059.5,2.97023755]
[1761061221501,0.433,4059.6,4059.4,5.80440281]
[1761061221705,0.433,4059.6,4059.4,3.341]
[1761061221900,0.001,4059.6,4059.5,0.02463357]
[1761061222202,0.001,4059.6,4059.5,2.99487112]
[1761061222825,0.001,4059.6,4059.5,2.97023755]
[1761061223030,0.001,4059.6,4059.5,2.99487112]
[1761061224038,0.001,4059.6,4059.5,3.87480516]
[1761061224202,0.001,4059.6,4059.5,2.97023755]
[1761061224406,0.001,4059.6,4059.5,6.46527112]
[1761061224600,0.001,4059.6,4059.5,8.16863755]
[1761061225348,0.001,4059.6,4059.5,8.29103755]
[1761061226152,0.001,4059.6,4059.5,8.16063755]
[1761061226445,0.001,4059.6,4059.5,9.35343753]
[1761061227243,0.001,4059.6,4059.5,9.22303753]
[1761061228150,0.001,4059.6,4059.5,9.35343753]
[1761061228338,0.001,4059.6,4059.5,11.95943753]
[1761061228950,0.001,4059.6,4059.5,11.82903753]
[1761061229247,0.001,4059.6,4059.5,9.22303753]
[1761061229824,0.001,4059.6,4059.5,8.71615753]
[1761061230345,0.001,4059.6,4059.5,2.97023755]
[1761061230549,0.001,4059.6,4059.5,6.30823755]
[1761061232662,0.001,4059.6,4059.5,8.16663755]
[1761061233167,2.46297126,4061.8,4059.5,10.77263755]
[1761061233168,0.001,4061.8,4059.5,10.77263755]
[1761061233377,0.001,4061.8,4060.8,2.96944895]
[1761061233547,0.001,4061.8,4060.8,10.40293304]
[1761061233732,0.001,4061.8,4060.8,10.53333304]
[1761061233941,0.2323,4063.0,4062.1,0.50688]
[1761061234147,0.2323,4063.0,4062.3,0.50688]
[1761061234148,0.6867,4062.9,4062.3,0.50688]
[1761061234436,0.6867,4062.9,4062.2,3.338]
[1761061234437,0.6867,4062.9,4062.4,5.79957974]
[1761061234661,0.4544,4062.8,4062.5,3.338]
[1761061234935,0.4544,4062.8,4062.7,2.46141728]
[1761061235268,0.2323,4063.0,4062.8,2.96823669]
[1761061235469,0.2323,4063.3,4062.9,3.338]
[1761061235769,0.2323,4063.3,4063.2,2.96799439]
[1761061235946,0.2323,4063.6,4063.4,0.50688]
[1761061236146,0.2323,4063.6,4063.5,3.337]
[1761061236742,0.2323,4063.6,4063.5,5.79793269]
[1761061237271,0.2323,4063.6,4063.5,3.337]
[1761061237473,0.2323,4063.6,4063.5,5.79793269]
[1761061237674,0.6867,4064.0,4063.5,6.30481269]
[1761061237844,0.4544,4063.9,4063.5,3.337]
[1761061238043,0.4544,4063.9,4061.2,1.6702607]
[1761061238260,0.4544,4063.9,4060.6,2.46267932]
[1761061238261,0.2323,4061.4,4061.3,3.337]
[1761061238648,0.2323,4061.8,4061.7,2.46202329]
[1761061238851,0.6867,4063.0,4062.6,2.4614596]
[1761061239049,0.6867,4063.0,4061.9,0.50688]
[1761061239050,0.6867,4063.0,4062.7,3.336]
[1761061239368,0.4544,4062.9,4062.8,3.336]
[1761061240347,0.4544,4062.9,4062.8,3.4584]
[1761061241086,0.4544,4062.9,4062.8,5.91975669]
[1761061241380,0.4544,4062.9,4062.8,3.4584]
[1761061241579,0.4544,4062.9,4062.8,5.91975669]
[1761061241884,0.4544,4062.9,4062.8,3.4584]
[1761061242201,0.4544,4063.9,4063.0,0.50688]
[1761061242400,0.4544,4063.9,4063.5,2.46092304]
[1761061242601,0.4544,4063.9,4063.6,3.36060872]
[1761061242750,0.4544,4063.9,4063.8,2.46075102]
[1761061243252,0.4544,4063.9,4063.6,3.336]
[1761061244978,0.4544,4063.9,4063.7,2.46081157]
[1761061245355,0.4544,4063.9,4063.6,5.79686168]
[1761061245697,0.4544,4063.9,4063.7,2.46081065]
[1761061246099,0.2323,4064.0,4063.9,2.46069046]
[1761061246398,0.6867,4064.0,4063.9,5.79569046]
[1761061247398,0.6867,4064.0,4063.9,3.335]
[1761061247879,0.6867,4064.0,4063.9,5.79569046]
[1761061248090,0.2323,4064.0,4063.9,6.30257046]
[1761061248327,0.6867,4064.0,4063.9,3.335]
[1761061248819,0.2323,4064.0,4063.9,3.335]
[1761061249022,0.001,4064.4,4063.9,3.335]
[1761061249241,0.001,4064.4,4063.9,5.79567788]
[1761061249400,0.001,4064.4,4064.3,2.46044829]
[1761061249599,0.001,4064.4,4064.3,3.335]
[1761061249799,0.001,4064.4,4064.3,5.79544829]
[1761061249987,0.4554,4064.4,4064.3,3.335]
[1761061250892,0.001,4064.4,4064.3,5.82005277]
[1761061251091,0.001,4064.4,4064.3,5.79544829]
[1761061252034,0.001,4064.4,4064.3,6.30232829]
[1761061252332,0.001,4064.4,4064.3,6.42472829]
[1761061253333,0.001,4064.4,4064.3,5.91784829]
[1761061253534,0.001,4064.4,4064.3,6.42472829]
[1761061253740,0.001,4064.4,4064.3,7.31325702]
[1761061255224,0.001,4064.4,4064.3,6.42472829]
[1761061256519,0.001,4064.4,4064.3,0.1224]
[1761061256722,0.4726,4064.4,4064.3,5.91584829]
[1761061256921,0.4726,4064.4,4064.3,3.4554]
[1761061257122,0.001,4064.4,4064.3,5.91584829]
[1761061258246,0.4726,4064.4,4064.3,3.4554]
[1761061258443,0.4726,4064.4,4064.3,5.91584829]
[1761061259735,0.001,4064.4,4064.3,7.13797563]
[1761061261522,0.001,4064.4,4064.3,8.99637563]
[1761061261930,0.001,4064.4,4064.3,9.24347563]
[1761061262446,0.001,4064.4,4064.3,12.09510345]
[1761061262847,0.001,4064.4,4064.3,11.84947563]
[1761061263050,0.001,4064.4,4064.3,12.09510345]
[1761061263421,0.001,4066.2,4066.0,2.45941957]
[1761061263619,0.001,4066.2,4066.1,6.32283268]
[1761061263948,0.001,4066.2,4066.1,7.55281404]
[1761061264248,0.001,4066.2,4066.1,7.42241404]
[1761061264652,0.001,4066.2,4066.1,9.15041404]
[1761061265749,0.001,4066.2,4065.5,0.1304]
[1761061265957,0.2259,4066.1,4065.6,3.331]
[1761061266155,0.2259,4066.1,4065.8,0.50688]
[1761061266362,0.2259,4066.1,4065.9,3.331]
[1761061266558,0.4716,4066.0,4065.9,3.331]
[1761061266857,0.4716,4066.0,4065.9,3.83788]
[1761061267224,0.4716,4066.0,4065.9,3.331]
[1761061267719,0.2259,4066.1,4065.9,3.3555948]
[1761061267949,0.4716,4066.0,4065.9,3.3555948]
[1761061268121,0.2259,4066.1,4065.9,3.331]
[1761061268321,0.6975,4066.1,4065.9,3.331]
[1761061268522,0.001,4066.2,4066.1,2.45935909]
[1761061268757,0.001,4066.2,4066.1,4.69423909]
[1761061269855,0.001,4066.2,4066.1,4.81663909]
[1761061271139,0.001,4066.2,4066.1,4.97163268]
[1761061271671,0.001,4066.7,4066.6,2.9659367]
[1761061271829,0.001,4066.7,4066.6,26.96587641]
[1761061272160,0.001,4066.7,4066.6,27.08827641]
[1761061273634,0.001,4066.7,4066.6,27.2561342]
[1761061273829,0.001,4066.7,4066.6,27.21867641]
[1761061274325,0.001,4067.5,4067.0,2.45881485]
[1761061274524,0.001,4067.5,4067.4,3.08785304]
[1761061274762,0.001,4067.5,4067.4,26.66779908]
[1761061274948,0.001,4067.5,4067.4,26.79819908]
[1761061275126,0.001,4067.5,4067.4,26.66779908]
[1761061276158,0.001,4067.5,4067.4,26.79819908]
[1761061276337,0.001,4067.5,4067.4,29.26663397]
[1761061278030,0.001,4068.0,4067.9,2.45827085]
[1761061278235,0.001,4068.0,4067.9,8.04573355]
[1761061278454,0.001,4068.0,4067.9,8.02115085]
[1761061279087,0.001,4068.0,4067.9,26.66649689]
[1761061279608,0.001,4068.0,4067.9,20.37334604]
[1761061279763,0.433,4068.0,4067.9,5.055]
[1761061279946,0.001,4068.0,4067.9,7.53785355]
[1761061280152,0.001,4068.0,4067.9,10.48858574]
[1761061280380,0.001,4068.0,4067.9,8.02015085]
[1761061281483,0.001,4068.0,4067.9,8.15055085]
[1761061281848,0.2168,4069.8,4069.7,2.45718357]
[1761061282170,0.2168,4069.8,4069.7,3.326]
[1761061282371,0.6488,4069.8,4069.7,3.326]
[1761061282575,0.2168,4069.8,4069.7,3.326]
[1761061282883,0.6488,4069.8,4069.7,3.326]
[1761061283590,0.2259,4070.0,4069.7,3.326]
[1761061283756,0.6964,4070.3,4069.9,2.45706282]
[1761061284087,0.2337,4070.3,4070.0,3.326]
[1761061284264,0.2337,4070.3,4070.1,2.45693905]
[1761061284588,0.2337,4070.3,4070.0,3.326]
[1761061284806,0.4627,4070.7,4070.2,3.08616172]
[1761061284968,0.2337,4070.6,4070.3,3.326]
[1761061285172,0.4627,4070.5,4070.3,5.78279656]
[1761061285571,0.2337,4070.6,4070.3,5.78279656]
[1761061285572,0.2337,4070.6,4070.5,0.50688]
[1761061285971,0.2259,4071.1,4070.6,0.50688]
[1761061286174,0.2259,4071.1,4070.5,0.50688]
[1761061286175,0.2337,4070.8,4070.7,5.78157994]
[1761061286477,0.2337,4070.8,4070.7,6.28845994]
[1761061286684,0.2337,4070.8,4070.7,6.41085994]
[1761061286896,0.2337,4070.8,4070.7,3.4474]
[1761061287098,0.2337,4070.8,4070.7,6.28845994]
[1761061287618,0.2259,4071.1,4071.0,2.45639891]
[1761061287768,0.2259,4071.1,4071.0,3.325]
[1761061288424,0.6886,4071.1,4071.0,3.325]
[1761061290499,3.14493858,4071.1,4071.0,3.325]
[1761061291005,3.14493858,4071.1,4069.9,0.50688]
[1761061291006,2.45648552,4070.9,4070.0,0.50688]
[1761061291217,0.4627,4071.0,4070.1,3.324]
[1761061291424,0.2337,4069.5,4068.7,1.66]
[1761061291576,0.2337,4069.5,4068.8,3.323]
[1761061291774,0.2337,4069.5,4069.4,2.45736472]
[1761061291983,0.2337,4069.5,4069.4,5.78036472]
[1761061292207,0.4627,4069.8,4068.9,2.47208285]
[1761061292419,0.2337,4070.0,4069.6,2.45718789]
[1761061292619,0.2337,4070.0,4069.9,2.96394282]
[1761061292787,0.2337,4070.0,4069.9,6.28694282]
[1761061293289,0.6964,4070.0,4069.9,3.323]
[1761061293518,21.10123817,4071.9,4070.0,0.50688]
[1761061293519,0.4627,4070.5,4070.0,0.50688]
[1761061293727,0.4627,4070.5,4070.4,2.456761]
[1761061294033,0.4627,4070.9,4070.4,3.323]
[1761061294333,0.4627,4070.9,4070.5,2.96356338]
[1761061294534,0.4627,4070.9,4070.7,2.45657992]
[1761061294742,0.4627,4070.9,4070.8,3.323]
[1761061296197,0.2168,4072.0,4070.8,3.323]
[1761061296396,0.4627,4071.0,4070.8,3.323]
[1761061297133,0.4627,4071.0,4070.9,0.1224]
[1761061297433,2.45645925,4070.9,4070.8,2.848]
[1761061297597,3.0165995,4070.9,4070.8,2.848]
[1761061297796,2.45654682,4070.8,4070.5,3.322]
[1761061297998,0.4627,4070.7,4070.5,3.322]
[1761061298526,2.45664029,4070.6,4070.5,3.322]
[1761061298726,2.91934029,4070.6,4070.5,3.322]
[1761061299232,0.4627,4070.6,4070.5,3.322]
[1761061302252,0.4627,4070.6,4070.5,3.4444]
[1761061302434,0.3483,4071.1,4070.5,3.4444]
[1761061302630,0.4627,4070.6,4070.5,3.4444]
[1761061305124,0.4627,4070.9,4070.5,3.4444]
[1761061305753,0.4627,4070.9,4070.8,0.1224]
[1761061306156,0.2259,4071.1,4070.8,0.1224]
[1761061306454,0.4627,4071.0,4070.9,3.32]
[1761061307651,0.2259,4071.1,4070.9,3.32]
[1761061307848,0.4627,4071.0,4070.9,3.32]
[1761061308052,2.91909891,4071.0,4070.9,3.32]
[1761061308249,1.02282295,4071.0,4070.8,0.1224]
[1761061308461,0.4627,4070.9,4069.7,0.471]
[1761061308670,0.2337,4069.8,4069.7,0.471]
[1761061308855,2.45675125,4070.5,4069.7,0.471]
[1761061309063,0.4627,4070.8,4069.7,2.92818003]
[1761061309267,0.4627,4071.0,4069.8,0.02457123]
[1761061309444,0.4627,4071.0,4070.3,2.45680292]
[1761061309771,0.4627,4071.0,4070.4,3.319]
[1761061311274,2.45646186,4070.9,4070.4,3.319]
[1761061311572,0.4627,4070.8,4070.4,3.319]
[1761061314677,0.4627,4070.8,4069.6,2.70429197]
[1761061314979,0.4627,4070.8,4069.7,3.34257183]
[1761061315179,0.4627,4070.8,4070.1,2.45690359]
[1761061315476,0.4627,4070.8,4070.2,3.318]
[1761061315673,0.4627,4070.8,4070.3,2.45681341]
[1761061316052,0.0744,4071.0,4070.5,2.45670065]
[1761061316245,0.0744,4071.0,4070.6,0.24812683]
[1761061316450,0.4702,4070.9,4070.7,3.318]
[1761061316987,0.001,4070.8,4070.7,3.318]
[1761061317487,0.4712,4070.8,4070.7,3.318]
[1761061318961,2.9277196,4070.8,4070.7,3.318]
[1761061319383,2.45668194,4070.6,4070.4,0.002]
[1761061319558,2.45670065,4070.5,4070.4,0.002]
[1761061320090,2.92690065,4070.5,4070.4,0.002]
[1761061320294,0.4702,4070.5,4070.4,0.002]
[1761061320664,0.001,4070.8,4070.4,0.002]
[1761061320865,0.4702,4070.7,4070.4,0.002]
[1761061321258,2.92682378,4070.7,4070.4,0.002]
[1761061321456,2.4566745,4070.6,4070.4,0.002]
[1761061321671,2.92690065,4070.5,4070.4,0.002]
[1761061322562,0.4702,4070.5,4070.4,0.002]
[1761061323588,2.92690065,4070.5,4070.4,0.002]
[1761061323798,0.4702,4070.5,4070.4,0.002]
[1761061323951,0.001,4070.8,4070.4,0.002]
[1761061324156,0.4702,4070.7,4070.4,0.002]
[1761061324696,0.001,4070.8,4070.4,0.002]
[1761061324904,0.4702,4070.6,4070.4,0.002]
[1761061325056,0.001,4070.8,4070.4,0.002]
[1761061325256,0.4702,4070.7,4070.4,0.002]
[1761061325696,0.001,4070.8,4070.4,0.002]
[1761061325851,0.4712,4070.8,4070.4,0.002]
[1761061326255,0.001,4070.8,4070.7,2.45657994]
[1761061326482,0.001,4070.8,4070.7,5.77257994]
[1761061326880,0.001,4070.8,4070.7,6.27945994]
[1761061328155,0.001,4070.8,4070.7,5.77257994]
[1761061328487,0.001,4070.8,4070.7,6.65345603]
[1761061329987,0.001,4070.8,4070.7,3.316]
[1761061330191,0.4712,4070.8,4070.4,0.002]
[1761061330485,0.4712,4070.8,4070.7,3.315]
[1761061330687,0.4712,4070.8,4070.7,3.4374]
[1761061330895,0.001,4070.8,4070.7,3.4374]
[1761061331119,0.001,4070.8,4070.7,5.91854573]
[1761061331288,0.001,4070.8,4070.7,6.73171052]
[1761061332109,0.001,4070.8,4070.7,3.4374]
[1761061332298,0.4712,4070.8,4070.7,3.4374]
[1761061334494,2.99515284,4070.5,4070.4,0.002]
[1761061334722,1.00865219,4070.5,4070.4,0.002]
[1761061334892,0.4702,4070.5,4070.4,0.002]
[1761061335236,2.92690065,4070.5,4070.4,0.002]
[1761061336732,0.001,4070.8,4070.4,0.002]
[1761061337318,0.4712,4070.8,4070.4,2.45875964]
[1761061337485,0.001,4070.8,4070.4,0.002]
[1761061339051,0.001,4070.8,4070.4,2.45875484]
[1761061339353,0.001,4070.8,4070.5,2.45665189]
[1761061339511,0.001,4070.8,4070.6,3.313]
[1761061339714,0.001,4070.8,4070.4,0.002]
[1761061339715,0.4371,4070.8,4070.4,0.002]
[1761061340144,2.45670065,4070.5,4070.4,0.002]
[1761061340316,0.4371,4070.8,4070.4,0.002]
[1761061340515,2.45665647,4070.6,4070.4,0.002]
[1761061340713,2.45670065,4070.5,4070.4,0.002]
[1761061341166,2.89280065,4070.5,4070.4,0.002]
[1761061341830,0.4361,4070.5,4070.4,0.002]
[1761061342161,0.001,4070.8,4070.4,0.002]
[1761061342382,0.4361,4070.7,4070.4,0.002]
[1761061342517,0.92915063,4070.7,4070.4,0.002]
[1761061342717,0.4361,4070.7,4070.4,0.002]
[1761061342937,0.4361,4070.6,4070.4,0.002]
[1761061343446,2.45670065,4070.5,4070.4,0.002]
[1761061343956,0.4643,4070.5,4070.4,0.002]
[1761061344253,0.001,4070.8,4070.4,0.002]
[1761061344438,0.4643,4070.7,4070.4,0.002]
[1761061344641,0.1224,4070.6,4070.4,0.002]
[1761061344842,0.1234,4070.8,4070.5,3.312]
[1761061345023,0.1234,4070.8,4070.5,5.76869473]
[1761061345214,0.5877,4070.8,4070.5,3.312]
[1761061345421,2.45662421,4070.7,4070.5,3.312]
[1761061345620,2.92092421,4070.7,4070.5,3.312]
[1761061345821,0.1234,4070.8,4070.5,3.312]
[1761061346052,0.4643,4070.7,4070.5,3.312]
[1761061346664,2.45664029,4070.6,4070.5,3.312]
[1761061347164,0.4643,4070.6,4070.5,3.312]
[1761061347874,2.92094029,4070.6,4070.5,3.312]
[1761061348046,3.4587876,4070.6,4070.5,3.312]
[1761061348377,1.00214731,4070.6,4070.5,3.312]
[1761061348545,2.45670065,4070.5,4070.4,0.002]
[1761061348745,2.92100065,4070.5,4070.4,0.002]
[1761061349779,4.64900065,4070.5,4070.4,0.002]
[1761061349947,5.94320036,4070.5,4070.4,0.002]
[1761061350680,5.41344947,4070.5,4070.4,0.002]
[1761061350881,8.72444947,4070.5,4070.4,0.002]
[1761061351179,5.41344947,4070.5,4070.4,0.002]
[1761061351641,4.64900065,4070.5,4070.4,0.002]
[1761061353589,0.001,4070.8,4070.4,2.45875644]
[1761061353808,0.001,4070.8,4070.4,0.002]
[1761061353968,0.4653,4070.8,4070.4,0.002]